[Event "Torneo Nuevo Centro. Jornada 11"]
[Site "Chess.com"]
[Date "2020.08.28"]
[Round "9"]
[White "Beneyto de Ramon, Guillermo"]
[Black "Ortiz Benavent, Alba"]
[Result "1-0"]
[WhiteElo "1652"]
[BlackElo "1204"]
[TimeControl "180+2"]
[EndTime "12:06:06 PDT"]
[Termination "Victoria de GUILLETE por abandono"]

1. c4 {[%clk 0:03:01.4]} 1... Nf6 {[%clk 0:02:58.3]} 2. Nc3 {[%clk 0:03:01.5]}
2... g6 {[%clk 0:02:59.1]} 3. g3 {[%clk 0:03:02]} 3... Bg7 {[%clk 0:02:59.8]} 4.
Bg2 {[%clk 0:03:03.1]} 4... O-O {[%clk 0:03:00.5]} 5. d3 {[%clk 0:03:04.3]} 5...
Nc6 {[%clk 0:03:01.7]} 6. Nf3 {[%clk 0:03:05.3]} 6... d6 {[%clk 0:03:02.8]} 7.
O-O {[%clk 0:03:06.5]} 7... Bg4 {[%clk 0:03:03.3]} 8. Bg5 {[%clk 0:03:06.9]}
8... Qc8 {[%clk 0:02:57.1]} 9. Rb1 {[%clk 0:02:53.7]} 9... Bh3 {[%clk
0:02:55.7]} 10. Bxf6 {[%clk 0:02:51]} 10... Bxf6 {[%clk 0:02:55.1]} 11. Nd5
{[%clk 0:02:52.3]} 11... Bg7 {[%clk 0:02:49.6]} 12. b4 {[%clk 0:02:51.4]} 12...
Bxg2 {[%clk 0:02:40.8]} 13. Kxg2 {[%clk 0:02:51.3]} 13... e6 {[%clk 0:02:33.3]}
14. Ne3 {[%clk 0:02:50.7]} 14... Ne5 {[%clk 0:02:29.3]} 15. d4 {[%clk
0:02:44.6]} 15... Nxf3 {[%clk 0:02:28.8]} 16. exf3 {[%clk 0:02:46.3]} 16... e5
{[%clk 0:02:19]} 17. dxe5 {[%clk 0:02:42.1]} 17... Bxe5 {[%clk 0:02:18.3]} 18.
Nd5 {[%clk 0:02:41.1]} 18... Re8 {[%clk 0:02:09.6]} 19. Re1 {[%clk 0:02:38.4]}
19... Bg7 {[%clk 0:01:58]} 20. Rxe8+ {[%clk 0:02:36]} 20... Qxe8 {[%clk
0:01:57.3]} 21. Nxc7 {[%clk 0:02:36.2]} 21... Qc8 {[%clk 0:01:47.1]} 22. Nxa8
{[%clk 0:02:36.9]} 22... Qxa8 {[%clk 0:01:47.6]} 23. Qxd6 {[%clk 0:02:36.4]}
23... Qc8 {[%clk 0:01:37.3]} 24. Qc5 {[%clk 0:02:35.7]} 24... Qxc5 {[%clk
0:01:31.8]} 25. bxc5 {[%clk 0:02:36.8]} 25... Bf8 {[%clk 0:01:26.9]} 26. Rxb7
{[%clk 0:02:33.1]} 26... Bxc5 {[%clk 0:01:27.5]} 27. Rc7 {[%clk 0:02:34.1]}
27... Bd4 {[%clk 0:01:26.9]} 28. Rc8+ {[%clk 0:02:32.9]} 28... Kg7 {[%clk
0:01:26.5]} 29. c5 {[%clk 0:02:34.4]} 29... Kf6 {[%clk 0:01:25.7]} 30. c6 {[%clk
0:02:35.2]} 30... Ke7 {[%clk 0:01:26.6]} 31. Rc7+ {[%clk 0:02:24.2]} 31... Ke6
{[%clk 0:01:16.9]} 32. g4 {[%clk 0:02:22.4]} 32... h6 {[%clk 0:01:13]} 33. f4
{[%clk 0:02:23.4]} 33... f6 {[%clk 0:01:12]} 34. f5+ {[%clk 0:02:17]} 34... gxf5
{[%clk 0:01:11.4]} 35. gxf5+ {[%clk 0:02:18.8]} 35... Kxf5 {[%clk 0:01:12.5]}
36. Rd7 {[%clk 0:02:20.5]} 36... Bb6 {[%clk 0:01:02.7]} 37. c7 {[%clk
0:02:21.5]} 37... Bxc7 {[%clk 0:01:01.7]} 38. Rxc7 {[%clk 0:02:23.3]} 1

[Event "Torneo Nuevo Centro. Jornada 11"]
[Site "Chess.com"]
[Date "2020.08.28"]
[Round "9"]
[White "Chofre Murcia, Adrián"]
[Black "Gutierrez Marco, Dario"]
[Result "0-1"]
[WhiteElo "1624"]
[BlackElo "1821"]
[TimeControl "180+2"]
[EndTime "12:06:07 PDT"]
[Termination "Victoria de rususs por jaque mate"]

1. e4 {[%clk 0:03:01.9]} 1... c5 {[%clk 0:02:59.1]} 2. Nc3 {[%clk 0:03:02.5]}
2... e6 {[%clk 0:03:00.3]} 3. Nf3 {[%clk 0:03:02.3]} 3... Nc6 {[%clk 0:03:01.3]}
4. Bc4 {[%clk 0:03:01.6]} 4... a6 {[%clk 0:03:02]} 5. d4 {[%clk 0:03:01.5]} 5...
cxd4 {[%clk 0:03:01.3]} 6. Nxd4 {[%clk 0:03:01.9]} 6... Qc7 {[%clk 0:03:00.5]}
7. Be3 {[%clk 0:03:01.5]} 7... Nf6 {[%clk 0:02:52.3]} 8. O-O {[%clk 0:03:00.9]}
8... Be7 {[%clk 0:02:52.2]} 9. Nxc6 {[%clk 0:02:49]} 9... bxc6 {[%clk
0:02:40.2]} 10. Bd3 {[%clk 0:02:47.5]} 10... O-O {[%clk 0:02:38.1]} 11. Bg5
{[%clk 0:02:47.9]} 11... d5 {[%clk 0:02:36.7]} 12. exd5 {[%clk 0:02:45.8]} 12...
cxd5 {[%clk 0:02:37.3]} 13. Bxf6 {[%clk 0:02:46.4]} 13... Bxf6 {[%clk
0:02:38.3]} 14. Qh5 {[%clk 0:02:47]} 14... g6 {[%clk 0:02:38.1]} 15. Qf3 {[%clk
0:02:47.6]} 15... Bg7 {[%clk 0:02:33.4]} 16. Ne2 {[%clk 0:02:42.2]} 16... Bb7
{[%clk 0:02:29.4]} 17. Ng3 {[%clk 0:02:40.6]} 17... Bxb2 {[%clk 0:02:24.1]} 18.
Rab1 {[%clk 0:02:40.8]} 18... Bg7 {[%clk 0:02:25.6]} 19. Rfe1 {[%clk 0:02:31.1]}
19... Rfb8 {[%clk 0:02:13.2]} 20. Nh5 {[%clk 0:02:18.1]} 20... gxh5 {[%clk
0:01:51]} 21. Qxh5 {[%clk 0:02:18.5]} 21... h6 {[%clk 0:01:52.4]} 22. g4 {[%clk
0:02:10.6]} 22... Qf4 {[%clk 0:01:45.5]} 23. Re3 {[%clk 0:01:42.7]} 23... Bd4
{[%clk 0:01:21.7]} 24. Rg3 {[%clk 0:01:34.6]} 24... Bxf2+ {[%clk 0:01:19.3]} 25.
Kg2 {[%clk 0:01:31.8]} 25... d4+ {[%clk 0:01:16.1]} 26. Kh3 {[%clk 0:01:28.7]}
26... Bxg3 {[%clk 0:01:09.6]} 27. hxg3 {[%clk 0:01:28.9]} 27... Qg5 {[%clk
0:01:06.3]} 28. Qxg5+ {[%clk 0:01:27.6]} 28... hxg5 {[%clk 0:01:08.2]} 29. Rf1
{[%clk 0:01:27.7]} 29... Bd5 {[%clk 0:01:05.9]} 30. Rf6 {[%clk 0:01:27.7]} 30...
Kg7 {[%clk 0:01:05.7]} 31. Rf1 {[%clk 0:01:25]} 31... Rh8+ {[%clk 0:01:07]} 32.
Bh7 {[%clk 0:01:22.7]} 32... Rxh7# {[%clk 0:01:08.5]} 0

[Event "Torneo Nuevo Centro. Jornada 11"]
[Site "Chess.com"]
[Date "2020.08.28"]
[Round "9"]
[White "Tormos Beltran, Maite"]
[Black "Hernández Tomás, Efrén"]
[Result "1/2-1/2"]
[WhiteElo "1479"]
[BlackElo "1144"]
[TimeControl "180+2"]
[EndTime "12:06:24 PDT"]
[Termination "Partida en tablas por mutuo acuerdo"]

1. d4 {[%clk 0:03:01.9]} 1... d5 {[%clk 0:03:01.2]} 2. c4 {[%clk 0:03:02.3]}
2... c5 {[%clk 0:03:02.6]} 3. e3 {[%clk 0:02:59.8]} 3... e6 {[%clk 0:03:02.6]}
4. Nf3 {[%clk 0:02:59.7]} 4... Nf6 {[%clk 0:03:01.5]} 5. Nc3 {[%clk 0:02:58.9]}
5... Nc6 {[%clk 0:03:02.1]} 6. cxd5 {[%clk 0:02:58.3]} 6... exd5 {[%clk
0:03:01.9]} 7. Bb5 {[%clk 0:02:53.6]} 7... cxd4 {[%clk 0:03:01.2]} 8. Nxd4
{[%clk 0:02:51.5]} 8... Bd7 {[%clk 0:02:59.7]} 9. O-O {[%clk 0:02:43.4]} 9...
Nxd4 {[%clk 0:02:57.9]} 10. Bxd7+ {[%clk 0:02:43.2]} 10... Qxd7 {[%clk
0:02:56.8]} 11. Qxd4 {[%clk 0:02:42.5]} 11... Be7 {[%clk 0:02:54.1]} 12. a3
{[%clk 0:02:37.7]} 12... O-O {[%clk 0:02:50]} 13. b4 {[%clk 0:02:38]} 13... Rfc8
{[%clk 0:02:48.3]} 14. Bb2 {[%clk 0:02:38.1]} 14... Rc4 {[%clk 0:02:48.7]} 15.
Qd2 {[%clk 0:02:32.6]} 15... Qd6 {[%clk 0:02:38.1]} 16. Rfd1 {[%clk 0:02:25.3]}
16... Ng4 {[%clk 0:02:36.9]} 17. g3 {[%clk 0:02:17.9]} 17... Qh6 {[%clk
0:02:31]} 18. f3 {[%clk 0:02:08.7]} 18... Nf6 {[%clk 0:02:27.7]} 19. Nxd5 {[%clk
0:02:01.9]} 19... Nxd5 {[%clk 0:02:26.8]} 20. Qxd5 {[%clk 0:02:01.5]} 20... Rc2
{[%clk 0:02:22.9]} 21. Rd2 {[%clk 0:01:53.4]} 21... Rxd2 {[%clk 0:02:20.3]} 22.
Qxd2 {[%clk 0:01:52.2]} 22... Rd8 {[%clk 0:02:18.4]} 23. Qc3 {[%clk 0:01:48.6]}
23... Bf6 {[%clk 0:02:11.8]} 24. Qc2 {[%clk 0:01:37]} 24... Bxb2 {[%clk
0:02:11.6]} 25. Qxb2 {[%clk 0:01:37.5]} 25... Qxe3+ {[%clk 0:02:12]} 26. Qf2
{[%clk 0:01:26.8]} 26... Qxf2+ {[%clk 0:02:11.8]} 27. Kxf2 {[%clk 0:01:27]}
27... Rd2+ {[%clk 0:02:10.9]} 28. Kg1 {[%clk 0:01:27.7]} 28... Rd3 {[%clk
0:02:08.6]} 29. f4 {[%clk 0:01:27.8]} 29... g6 {[%clk 0:02:07]} 30. Ra2 {[%clk
0:01:18.5]} 30... b5 {[%clk 0:02:03.1]} 31. Kf2 {[%clk 0:01:17.5]} 31... a6
{[%clk 0:02:02.3]} 32. h4 {[%clk 0:01:12.7]} 32... h5 {[%clk 0:01:57]} 33. a4
{[%clk 0:01:12.9]} 33... bxa4 {[%clk 0:01:53.3]} 34. Rxa4 {[%clk 0:01:13.4]}
34... Rd2+ {[%clk 0:01:49.8]} 35. Ke3 {[%clk 0:01:12.9]} 35... Rb2 {[%clk
0:01:49]} 36. Rxa6 {[%clk 0:01:10]} 36... Rxb4 {[%clk 0:01:49]} 37. Ra3 {[%clk
0:01:08.8]} 37... Kg7 {[%clk 0:01:46.2]} 1/2-1

[Event "Torneo Nuevo Centro. Jornada 11"]
[Site "Chess.com"]
[Date "2020.08.28"]
[Round "9"]
[White "Sos Andreu, Eric"]
[Black "Carbonell Bofill, Carlos Eloy"]
[Result "1-0"]
[WhiteElo "2488"]
[BlackElo "1915"]
[TimeControl "180+2"]
[EndTime "12:06:45 PDT"]
[Termination "Victoria de ericovski por tiempo"]

1. d4 {[%clk 0:03:01.2]} 1... Nf6 {[%clk 0:02:56.3]} 2. c4 {[%clk 0:03:02.2]}
2... e5 {[%clk 0:02:56]} 3. dxe5 {[%clk 0:03:02.9]} 3... Ng4 {[%clk 0:02:57.5]}
4. Bf4 {[%clk 0:03:03.4]} 4... g5 {[%clk 0:02:55.2]} 5. Bg3 {[%clk 0:03:02.8]}
5... Bg7 {[%clk 0:02:56.2]} 6. Nf3 {[%clk 0:03:03.6]} 6... Nc6 {[%clk
0:02:57.3]} 7. h4 {[%clk 0:03:01.4]} 7... Ngxe5 {[%clk 0:02:57.5]} 8. Nxe5
{[%clk 0:03:02.4]} 8... Nxe5 {[%clk 0:02:54.6]} 9. e3 {[%clk 0:03:03.5]} 9... g4
{[%clk 0:02:52.3]} 10. h5 {[%clk 0:03:04.6]} 10... h6 {[%clk 0:02:40.6]} 11. Nc3
{[%clk 0:03:05.2]} 11... d6 {[%clk 0:02:40.8]} 12. Bh4 {[%clk 0:03:06.4]} 12...
Bf6 {[%clk 0:02:33.5]} 13. Bxf6 {[%clk 0:03:07.4]} 13... Qxf6 {[%clk 0:02:35.4]}
14. Qd4 {[%clk 0:03:05.9]} 14... Be6 {[%clk 0:02:29.6]} 15. Ne4 {[%clk
0:03:00.6]} 15... Qe7 {[%clk 0:02:27.4]} 16. c5 {[%clk 0:03:01.2]} 16... O-O
{[%clk 0:01:28.4]} 17. cxd6 {[%clk 0:02:56.3]} 17... cxd6 {[%clk 0:01:30.3]} 18.
Be2 {[%clk 0:02:48.8]} 18... Rad8 {[%clk 0:00:57.9]} 19. Nc3 {[%clk 0:02:45.4]}
19... f5 {[%clk 0:00:55.8]} 20. O-O-O {[%clk 0:02:41.3]} 20... Nc6 {[%clk
0:00:48.5]} 21. Qf4 {[%clk 0:02:41.1]} 21... Qg5 {[%clk 0:00:45.4]} 22. Qxg5+
{[%clk 0:02:36.9]} 22... hxg5 {[%clk 0:00:47.3]} 23. Rd2 {[%clk 0:02:36.1]}
23... f4 {[%clk 0:00:43]} 24. Rhd1 {[%clk 0:02:33.4]} 24... fxe3 {[%clk
0:00:42.5]} 25. fxe3 {[%clk 0:02:35.3]} 25... Rf2 {[%clk 0:00:39.4]} 26. Bc4
{[%clk 0:02:36.3]} 26... Bxc4 {[%clk 0:00:13.7]} 27. Rxf2 {[%clk 0:02:36.2]}
27... Bf7 {[%clk 0:00:13.1]} 28. Nd5 {[%clk 0:02:34.6]} 28... Ne5 {[%clk
0:00:10.5]} 29. h6 {[%clk 0:02:34.6]} 29... Kh7 {[%clk 0:00:10.8]} 30. Nf6+
{[%clk 0:02:31.2]} 30... Kxh6 {[%clk 0:00:10.7]} 31. Nxg4+ {[%clk 0:02:32.3]}
31... Nxg4 {[%clk 0:00:10.5]} 32. Rxf7 {[%clk 0:02:33.3]} 32... Nxe3 {[%clk
0:00:09.7]} 33. Rf6+ {[%clk 0:02:25.7]} 33... Kg7 {[%clk 0:00:10.1]} 34. Rdxd6
{[%clk 0:02:26.9]} 34... Rxd6 {[%clk 0:00:10.9]} 35. Rxd6 {[%clk 0:02:28.8]}
35... Nxg2 {[%clk 0:00:12.1]} 36. Kd2 {[%clk 0:02:26]} 36... g4 {[%clk
0:00:06.8]} 37. Ke2 {[%clk 0:02:27]} 37... Nf4+ {[%clk 0:00:07]} 38. Kf2 {[%clk
0:02:27.1]} 38... Kf7 {[%clk 0:00:03.1]} 39. Kg3 {[%clk 0:02:26.3]} 39... Ng6
{[%clk 0:00:03.9]} 40. Kxg4 {[%clk 0:02:26.7]} 1

[Event "Torneo Nuevo Centro. Jornada 11"]
[Site "Chess.com"]
[Date "2020.08.28"]
[Round "9"]
[White "Gómez Alonso, Óscar"]
[Black "Serrano Requena, Guillem"]
[Result "1-0"]
[WhiteElo "1799"]
[BlackElo "1358"]
[TimeControl "180+2"]
[EndTime "12:06:53 PDT"]
[Termination "Victoria de osgo78 por jaque mate"]

1. d4 {[%clk 0:03:00]} 1... d5 {[%clk 0:03:00.4]} 2. c4 {[%clk 0:03:00.7]} 2...
c6 {[%clk 0:03:00.4]} 3. Nc3 {[%clk 0:03:01.4]} 3... dxc4 {[%clk 0:02:57.2]} 4.
a4 {[%clk 0:03:02.1]} 4... Bd7 {[%clk 0:02:50.4]} 5. e4 {[%clk 0:03:01.8]} 5...
b5 {[%clk 0:02:50.7]} 6. axb5 {[%clk 0:03:02.6]} 6... cxb5 {[%clk 0:02:51.5]} 7.
b3 {[%clk 0:02:49.6]} 7... Qc7 {[%clk 0:02:38.8]} 8. bxc4 {[%clk 0:02:49]} 8...
bxc4 {[%clk 0:02:39.7]} 9. Ba3 {[%clk 0:02:45.2]} 9... g6 {[%clk 0:02:30.1]} 10.
Nf3 {[%clk 0:02:45.1]} 10... Bg7 {[%clk 0:02:30.4]} 11. Be2 {[%clk 0:02:44.7]}
11... Nc6 {[%clk 0:02:30.3]} 12. e5 {[%clk 0:02:42.8]} 12... Qb6 {[%clk
0:02:22.7]} 13. O-O {[%clk 0:02:40.4]} 13... a6 {[%clk 0:02:15.7]} 14. Nd5
{[%clk 0:02:27.1]} 14... Qa7 {[%clk 0:02:11.5]} 15. Bxc4 {[%clk 0:02:24.3]}
15... Nh6 {[%clk 0:02:07.6]} 16. Bc5 {[%clk 0:02:12]} 16... Qb8 {[%clk
0:02:04.4]} 17. Rb1 {[%clk 0:02:03.7]} 17... Qd8 {[%clk 0:01:59.2]} 18. Bb6
{[%clk 0:01:59.9]} 18... Qc8 {[%clk 0:01:58.1]} 19. Nc7+ {[%clk 0:01:59.5]}
19... Kf8 {[%clk 0:01:58.7]} 20. Nxa8 {[%clk 0:01:57.3]} 20... Qxa8 {[%clk
0:01:57.5]} 21. Bc5 {[%clk 0:01:48.3]} 21... Nf5 {[%clk 0:01:56.6]} 22. Qb3
{[%clk 0:01:39.2]} 22... Na5 {[%clk 0:01:48.6]} 23. Qb4 {[%clk 0:01:35.3]} 23...
Nxc4 {[%clk 0:01:47.6]} 24. Qxc4 {[%clk 0:01:24.7]} 24... Bb5 {[%clk 0:01:45.1]}
25. Rxb5 {[%clk 0:01:23.9]} 25... axb5 {[%clk 0:01:44.9]} 26. Qxb5 {[%clk
0:01:24.9]} 26... Qe8 {[%clk 0:01:38.6]} 27. Qb7 {[%clk 0:01:22.3]} 27... Bh6
{[%clk 0:01:32]} 28. g4 {[%clk 0:01:20.1]} 28... Kg7 {[%clk 0:01:12.1]} 29. gxf5
{[%clk 0:01:19]} 29... gxf5 {[%clk 0:01:14]} 30. Qxe7 {[%clk 0:01:18.7]} 30...
Qa4 {[%clk 0:00:54.6]} 31. Qf6+ {[%clk 0:01:18]} 31... Kg8 {[%clk 0:00:52.7]}
32. Kh1 {[%clk 0:01:13.3]} 32... Qc6 {[%clk 0:00:52.4]} 33. Rg1+ {[%clk
0:01:13.6]} 33... Bg7 {[%clk 0:00:51.3]} 34. Qxg7# {[%clk 0:01:10.7]} 1

[Event "Torneo Nuevo Centro. Jornada 11"]
[Site "Chess.com"]
[Date "2020.08.28"]
[Round "9"]
[White "Gil López, Alejandro"]
[Black "Lloret Ramis, Juan José"]
[Result "1-0"]
[WhiteElo "2199"]
[BlackElo "1976"]
[TimeControl "180+2"]
[EndTime "12:06:56 PDT"]
[Termination "Victoria de AglVal0313 por jaque mate"]

1. e4 {[%clk 0:03:01.9]} 1... e6 {[%clk 0:03:00]} 2. Nf3 {[%clk 0:03:03.3]} 2...
d5 {[%clk 0:03:00]} 3. exd5 {[%clk 0:03:04.2]} 3... exd5 {[%clk 0:03:00.8]} 4.
d4 {[%clk 0:03:06.1]} 4... Nc6 {[%clk 0:03:00.7]} 5. Bd3 {[%clk 0:03:07.5]} 5...
Bd6 {[%clk 0:03:01.5]} 6. O-O {[%clk 0:03:07.9]} 6... Nge7 {[%clk 0:03:02.3]} 7.
c3 {[%clk 0:03:08.7]} 7... O-O {[%clk 0:03:03.1]} 8. b4 {[%clk 0:03:07.8]} 8...
Bf5 {[%clk 0:03:01.6]} 9. Re1 {[%clk 0:03:03.1]} 9... Qd7 {[%clk 0:02:55.9]} 10.
a4 {[%clk 0:02:58.5]} 10... Rae8 {[%clk 0:02:53.1]} 11. Na3 {[%clk 0:02:56.4]}
11... Bxd3 {[%clk 0:02:43.4]} 12. Qxd3 {[%clk 0:02:55.7]} 12... Qf5 {[%clk
0:02:44.6]} 13. Qxf5 {[%clk 0:02:51.2]} 13... Nxf5 {[%clk 0:02:45.4]} 14. Bg5
{[%clk 0:02:48.2]} 14... f6 {[%clk 0:02:43.4]} 15. Bd2 {[%clk 0:02:46.6]} 15...
g5 {[%clk 0:02:36.9]} 16. h3 {[%clk 0:02:41.3]} 16... h5 {[%clk 0:02:32.8]} 17.
Nc2 {[%clk 0:02:37.2]} 17... g4 {[%clk 0:02:22.6]} 18. hxg4 {[%clk 0:02:39.1]}
18... hxg4 {[%clk 0:02:23.8]} 19. Nh2 {[%clk 0:02:40.2]} 19... g3 {[%clk
0:02:16.4]} 20. fxg3 {[%clk 0:02:39.7]} 20... Bxg3 {[%clk 0:02:16.2]} 21. Rf1
{[%clk 0:02:22.7]} 21... Nd6 {[%clk 0:02:01.3]} 22. Ng4 {[%clk 0:02:22]} 22...
Re2 {[%clk 0:01:52.4]} 23. Bh6 {[%clk 0:02:13.8]} 23... Rxc2 {[%clk 0:01:42.9]}
24. Bxf8 {[%clk 0:02:08.2]} 24... Kxf8 {[%clk 0:01:43.9]} 25. Nxf6 {[%clk
0:02:10.1]} 25... Ke7 {[%clk 0:00:41.4]} 26. Nxd5+ {[%clk 0:02:09.7]} 26... Kd7
{[%clk 0:00:42.2]} 27. Rf3 {[%clk 0:01:58.4]} 27... Ne4 {[%clk 0:00:26.6]} 28.
Raf1 {[%clk 0:01:56.7]} 28... Bd6 {[%clk 0:00:19.7]} 29. Re1 {[%clk 0:01:52.4]}
29... Nd2 {[%clk 0:00:15.8]} 30. Rf7+ {[%clk 0:01:45.6]} 30... Kd8 {[%clk
0:00:16.6]} 31. Nf6 {[%clk 0:01:27]} 31... Ne7 {[%clk 0:00:13.6]} 32. Rf8#
{[%clk 0:01:26.9]} 1

[Event "Torneo Nuevo Centro. Jornada 11"]
[Site "Chess.com"]
[Date "2020.08.28"]
[Round "9"]
[White "Pedros Viudes, Santiago"]
[Black "Pardo Ruiz, Carlos"]
[Result "0-1"]
[WhiteElo "1883"]
[BlackElo "1714"]
[TimeControl "180+2"]
[EndTime "12:07:03 PDT"]
[Termination "Victoria de Carlitoscarlsen por abandono"]

1. d4 {[%clk 0:03:01.9]} 1... c5 {[%clk 0:03:00]} 2. d5 {[%clk 0:03:02.6]} 2...
Nf6 {[%clk 0:02:59.5]} 3. Nc3 {[%clk 0:03:03]} 3... d6 {[%clk 0:03:00]} 4. e4
{[%clk 0:03:03.4]} 4... e6 {[%clk 0:03:01.2]} 5. Be2 {[%clk 0:03:03.8]} 5...
exd5 {[%clk 0:02:58.8]} 6. exd5 {[%clk 0:03:05.7]} 6... Be7 {[%clk 0:02:55.5]}
7. h3 {[%clk 0:03:06.5]} 7... O-O {[%clk 0:02:55.2]} 8. Nf3 {[%clk 0:03:08.4]}
8... Re8 {[%clk 0:02:53.2]} 9. O-O {[%clk 0:03:09.1]} 9... Bf5 {[%clk
0:02:47.6]} 10. Bf4 {[%clk 0:03:09.5]} 10... a6 {[%clk 0:02:47.7]} 11. a4 {[%clk
0:03:08.9]} 11... Bf8 {[%clk 0:02:43.3]} 12. Nd2 {[%clk 0:03:05.6]} 12... Ne4
{[%clk 0:02:35.9]} 13. Ncxe4 {[%clk 0:03:04.4]} 13... Bxe4 {[%clk 0:02:37.8]}
14. Bf3 {[%clk 0:03:05.7]} 14... Bxf3 {[%clk 0:02:32.2]} 15. Qxf3 {[%clk
0:03:07.6]} 15... Qf6 {[%clk 0:02:31.2]} 16. Nc4 {[%clk 0:03:01]} 16... Nd7
{[%clk 0:02:15.7]} 17. Rfe1 {[%clk 0:02:48.4]} 17... b5 {[%clk 0:01:52.9]} 18.
Rxe8 {[%clk 0:01:40.9]} 18... Rxe8 {[%clk 0:01:51.1]} 19. axb5 {[%clk
0:01:37.9]} 19... axb5 {[%clk 0:01:53]} 20. Na5 {[%clk 0:01:39]} 20... Qxb2
{[%clk 0:01:48.6]} 21. Rc1 {[%clk 0:01:36.9]} 21... Ra8 {[%clk 0:01:32]} 22. Nb7
{[%clk 0:01:31.9]} 22... Ne5 {[%clk 0:01:21.8]} 23. Qg3 {[%clk 0:01:28.3]} 23...
Ng6 {[%clk 0:01:17]} 24. Re1 {[%clk 0:01:21.5]} 24... Qb4 {[%clk 0:01:00.7]} 25.
Bxd6 {[%clk 0:00:17.6]} 25... Qxe1+ {[%clk 0:01:00.4]} 26. Kh2 {[%clk
0:00:18.7]} 26... Bxd6 {[%clk 0:01:00.1]} 27. Qxd6 {[%clk 0:00:20.5]} 27... Qe5+
{[%clk 0:00:59.6]} 28. Qxe5 {[%clk 0:00:20.4]} 28... Nxe5 {[%clk 0:01:01.5]} 0

[Event "Torneo Nuevo Centro. Jornada 11"]
[Site "Chess.com"]
[Date "2020.08.28"]
[Round "9"]
[White "del Campo Hernández, Ángel "]
[Black "Alvarez Usina, Jordi"]
[Result "0-1"]
[WhiteElo "1126"]
[BlackElo "1267"]
[TimeControl "180+2"]
[EndTime "12:07:05 PDT"]
[Termination "Victoria de jordi_alvarez por abandono"]

1. e4 {[%clk 0:03:00.3]} 1... e5 {[%clk 0:03:00.5]} 2. f4 {[%clk 0:02:51.6]}
2... d6 {[%clk 0:02:44.7]} 3. Nf3 {[%clk 0:02:47.1]} 3... Nc6 {[%clk 0:02:40.8]}
4. fxe5 {[%clk 0:02:38.6]} 4... Nxe5 {[%clk 0:02:40.6]} 5. d4 {[%clk 0:02:36.8]}
5... Nc6 {[%clk 0:02:36.5]} 6. d5 {[%clk 0:02:32.4]} 6... Ne5 {[%clk 0:02:35.8]}
7. Bf4 {[%clk 0:02:24.3]} 7... Qe7 {[%clk 0:02:29.2]} 8. Bg5 {[%clk 0:02:21.3]}
8... f6 {[%clk 0:02:27.9]} 9. Nxe5 {[%clk 0:01:56.1]} 9... Qxe5 {[%clk
0:02:19.9]} 10. Be3 {[%clk 0:01:42.2]} 10... Qxe4 {[%clk 0:02:02.1]} 11. Bb5+
{[%clk 0:01:41.6]} 11... Bd7 {[%clk 0:01:56.3]} 12. Bxd7+ {[%clk 0:01:39.4]}
12... Kxd7 {[%clk 0:01:54.8]} 13. Nc3 {[%clk 0:01:36.6]} 13... Qxe3+ {[%clk
0:01:53.4]} 14. Qe2 {[%clk 0:01:36.6]} 14... Re8 {[%clk 0:01:49.1]} 15. Qxe3
{[%clk 0:01:30.2]} 15... Rxe3+ {[%clk 0:01:48.6]} 16. Kf2 {[%clk 0:01:28.5]}
16... Re5 {[%clk 0:01:44.7]} 17. Rhe1 {[%clk 0:01:26.1]} 17... f5 {[%clk
0:01:43.6]} 18. Rxe5 {[%clk 0:01:20.7]} 18... dxe5 {[%clk 0:01:43.5]} 19. Re1
{[%clk 0:01:19.3]} 19... Bd6 {[%clk 0:01:39.4]} 20. Nb5 {[%clk 0:01:12.1]} 20...
a6 {[%clk 0:01:37.5]} 21. Nxd6 {[%clk 0:01:06.8]} 21... Kxd6 {[%clk 0:01:37.2]}
22. c4 {[%clk 0:01:06.3]} 22... Nf6 {[%clk 0:01:36.8]} 23. Kg3 {[%clk
0:01:02.4]} 23... Re8 {[%clk 0:01:10.5]} 24. Kh4 {[%clk 0:00:58.8]} 24... h6
{[%clk 0:01:11.2]} 25. h3 {[%clk 0:00:56.8]} 25... Kc5 {[%clk 0:01:09.8]} 26. g4
{[%clk 0:00:56.7]} 26... fxg4 {[%clk 0:01:09.4]} 27. hxg4 {[%clk 0:00:56.9]}
27... Kxc4 {[%clk 0:01:08.5]} 28. g5 {[%clk 0:00:56.7]} 28... hxg5+ {[%clk
0:01:08.1]} 29. Kxg5 {[%clk 0:00:57]} 29... Kxd5 {[%clk 0:01:08.7]} 30. Kg6
{[%clk 0:00:57.4]} 30... Rg8 {[%clk 0:01:08.7]} 31. Rd1+ {[%clk 0:00:54.3]}
31... Ke6 {[%clk 0:01:06.3]} 32. Re1 {[%clk 0:00:53.8]} 32... e4 {[%clk
0:00:58.3]} 0

[Event "Torneo Nuevo Centro. Jornada 11"]
[Site "Chess.com"]
[Date "2020.08.28"]
[Round "9"]
[White "Castellano López, Javier"]
[Black "Fernández Martin, Carlos"]
[Result "0-1"]
[WhiteElo "1922"]
[BlackElo "1784"]
[TimeControl "180+2"]
[EndTime "12:07:11 PDT"]
[Termination "Victoria de Pistachomortal por tiempo"]

1. d4 {[%clk 0:03:01.9]} 1... d6 {[%clk 0:03:00.5]} 2. c4 {[%clk 0:03:01.3]}
2... e5 {[%clk 0:03:00.8]} 3. dxe5 {[%clk 0:03:01.6]} 3... dxe5 {[%clk
0:03:00.9]} 4. Qxd8+ {[%clk 0:02:59.2]} 4... Kxd8 {[%clk 0:03:02.5]} 5. Nf3
{[%clk 0:02:58.8]} 5... f6 {[%clk 0:03:02.7]} 6. Nc3 {[%clk 0:02:57.6]} 6... c6
{[%clk 0:03:03.1]} 7. e4 {[%clk 0:02:54.9]} 7... Be6 {[%clk 0:03:01.3]} 8. Be3
{[%clk 0:02:55.1]} 8... Nh6 {[%clk 0:03:01.2]} 9. Rd1+ {[%clk 0:02:53.7]} 9...
Kc7 {[%clk 0:03:02.1]} 10. h3 {[%clk 0:02:54.2]} 10... Na6 {[%clk 0:02:56.4]}
11. g4 {[%clk 0:02:52.7]} 11... Nb4 {[%clk 0:02:55.8]} 12. Bxh6 {[%clk
0:02:43.1]} 12... gxh6 {[%clk 0:02:56.1]} 13. Be2 {[%clk 0:02:33.1]} 13... Nc2+
{[%clk 0:02:48.1]} 14. Kf1 {[%clk 0:02:27.5]} 14... Bc5 {[%clk 0:02:38.2]} 15.
Na4 {[%clk 0:02:05.7]} 15... Bd4 {[%clk 0:02:31.8]} 16. Rd2 {[%clk 0:01:56.4]}
16... Nb4 {[%clk 0:02:15.1]} 17. a3 {[%clk 0:01:47]} 17... Na6 {[%clk
0:02:09.1]} 18. Nxd4 {[%clk 0:01:47.5]} 18... exd4 {[%clk 0:02:08.7]} 19. Rxd4
{[%clk 0:01:49.4]} 19... Rhd8 {[%clk 0:02:03.2]} 20. Rxd8 {[%clk 0:01:48.3]}
20... Rxd8 {[%clk 0:02:02.5]} 21. Kg2 {[%clk 0:01:11.3]} 21... Rd2 {[%clk
0:01:59.5]} 22. Kf3 {[%clk 0:01:08.3]} 22... Nb8 {[%clk 0:01:50]} 23. Rd1 {[%clk
0:01:07.9]} 23... Rc2 {[%clk 0:01:45.9]} 24. c5 {[%clk 0:00:57.3]} 24... Bb3
{[%clk 0:01:41.7]} 25. Nc3 {[%clk 0:00:44.1]} 25... Rxb2 {[%clk 0:01:40.9]} 26.
Rd6 {[%clk 0:00:39]} 26... Nd7 {[%clk 0:01:39.3]} 27. Bf1 {[%clk 0:00:15.4]}
27... Nxc5 {[%clk 0:01:38.6]} 28. Rxf6 {[%clk 0:00:14.8]} 28... Rc2 {[%clk
0:01:31.2]} 29. Ne2 {[%clk 0:00:12.8]} 29... Ra2 {[%clk 0:01:24.3]} 30. Nd4
{[%clk 0:00:13.6]} 30... Bd1+ {[%clk 0:01:22]} 0